{"text_format":"3","workbook":"xlsx","n_sheets":3,"sheets":["Mesečni izveštaj o budžetu","Mesečni troškovi","Dodatni podaci"],"not_rendered":{"charts":1,"defined_names":4,"pivot_tables":2},"read":"whole","date_system":"1900"}

{"sheet":"Mesečni izveštaj o budžetu","index":0,"n_rows":34,"n_cols":13,"rows_kept":34,"merged":[[7,1,10,1],[7,5,10,5],[7,6,10,6],[12,1,16,1],[12,5,16,5],[12,6,16,6]]}
[null,"Pregled budžeta",{"$nulls":7},"Rezime budžeta"]
[null,"Saldo"]
[null,"Predviđeni saldo","(Predviđeni minus troškovi)",{"$nulls":3},{"$f":"D17-SUM(BudgetDetails[Predviđeni trošak])","v":{"v":1585,"d":"1,585 Din."}}]
[null,"Stvarni saldo ","(Stvarni minus troškovi)",{"$nulls":3},{"$f":"D11-SUM(BudgetDetails[Stvarni trošak])","v":{"v":1740,"d":"1,740 Din."}}]
[null,"Razlika","(Stvarni minus predviđeni)",{"$nulls":3},{"$f":"G4-G3","v":{"v":155,"d":"155 Din."}}]
[]
[null,"Prihod",{"$nulls":3},"Troškovi",{"$nulls":3},"Kliknite desnim tasterom miša na izvedenu tabelu niže, a zatim kliknite na dugme Osveži za ažuriranje"]
[null,"STVARNO","Prihod 1",{"v":5800,"d":"5,800 Din."},null,"STVARNO",{"$f":"SUM(BudgetDetails[Stvarni trošak])","v":{"v":7860,"d":"7,860 Din."}}]
[null,null,"Prihod 2",{"v":2300,"d":"2,300 Din."},{"$nulls":5},"Kategorija","Predviđeni trošak ","Stvarni trošak ","Razlika "]
[null,null,"Dodatni prihod",{"v":1500,"d":"1,500 Din."},{"$nulls":5},"Deca",{"v":140,"d":"140 Din."},{"v":140,"d":"140 Din."},{"v":0,"d":"0 Din."}]
[null,null,"Ukupan prihod",{"$f":"SUM(D8:D10)","v":{"v":9600,"d":"9,600 Din."}}]
[{"$nulls":9},"Zabava",{"v":400,"d":"400 Din."},{"v":358,"d":"358 Din."},{"v":42,"d":"42 Din."}]
[null,"PREDVIĐENO",{"$nulls":3},"PREDVIĐENO",{"$f":"SUM(BudgetDetails[Predviđeni trošak])","v":{"v":7915,"d":"7,915 Din."}}]
[null,null,"Prihod 1",{"v":6000,"d":"6,000 Din."},{"$nulls":5},"Hrana",{"v":1100,"d":"1,100 Din."},{"v":1320,"d":"1,320 Din."},{"v":-220,"d":"-220 Din."}]
[null,null,"Prihod 2",{"v":1000,"d":"1,000 Din."}]
[null,null,"Dodatni prihod",{"v":2500,"d":"2,500 Din."},{"$nulls":5},"Pokloni i dobrovoljni prilozi",{"v":100,"d":"100 Din."},{"v":125,"d":"125 Din."},{"v":-25,"d":"-25 Din."}]
[null,null,"Ukupan prihod",{"$f":"SUM(D14:D16)","v":{"v":9500,"d":"9,500 Din."}}]
[{"$nulls":9},"Domaćinstvo",{"v":2830,"d":"2,830 Din."},{"v":2702,"d":"2,702 Din."},{"v":128,"d":"128 Din."}]
[]
[{"$nulls":9},"Osiguranje",{"v":900,"d":"900 Din."},{"v":900,"d":"900 Din."},{"v":0,"d":"0 Din."}]
[]
[{"$nulls":9},"Krediti",{"v":200,"d":"200 Din."},{"v":200,"d":"200 Din."},{"v":0,"d":"0 Din."}]
[]
[{"$nulls":9},"Lična nega",{"v":150,"d":"150 Din."},{"v":140,"d":"140 Din."},{"v":10,"d":"10 Din."}]
[]
[{"$nulls":9},"Ljubimci",{"v":170,"d":"170 Din."},{"v":100,"d":"100 Din."},{"v":70,"d":"70 Din."}]
[]
[{"$nulls":9},"Uštede ili ulaganja",{"v":200,"d":"200 Din."},{"v":200,"d":"200 Din."},{"v":0,"d":"0 Din."}]
[]
[{"$nulls":9},"Porezi",{"v":300,"d":"300 Din."},{"v":300,"d":"300 Din."},{"v":0,"d":"0 Din."}]
[]
[{"$nulls":9},"Prevoz",{"v":1425,"d":"1,425 Din."},{"v":1375,"d":"1,375 Din."},{"v":50,"d":"50 Din."}]
[]
[{"$nulls":9},"Konačni zbir",{"v":7915,"d":"7,915 Din."},{"v":7860,"d":"7,860 Din."},{"v":55,"d":"55 Din."}]

{"sheet":"Mesečni troškovi","index":1,"n_rows":62,"n_cols":7,"rows_kept":62}
[null,"Mesečni troškovi"]
[null,"Opis","Kategorija","Predviđeni trošak","Stvarni trošak","Razlika","Pregled stvarnog troška"]
[null,"Vannastavne aktivnosti","Deca",{"v":40,"d":"40 Din."},{"v":40,"d":"40 Din."},{"$f":"BudgetDetails[[#This Row],[Predviđeni trošak]]-BudgetDetails[[#This Row],[Stvarni trošak]]","v":{"v":0,"d":"0 Din."}},{"$f":"BudgetDetails[[#This Row],[Stvarni trošak]]","v":{"v":40,"d":"$40"}}]
[null,"Lečenje","Deca",null,null,{"$f":"BudgetDetails[[#This Row],[Predviđeni trošak]]-BudgetDetails[[#This Row],[Stvarni trošak]]","v":{"v":0,"d":"0 Din."}},{"$f":"BudgetDetails[[#This Row],[Stvarni trošak]]","v":{"v":0,"d":"$0"}}]
[null,"Školski pribor","Deca",null,null,{"$f":"BudgetDetails[[#This Row],[Predviđeni trošak]]-BudgetDetails[[#This Row],[Stvarni trošak]]","v":{"v":0,"d":"0 Din."}},{"$f":"BudgetDetails[[#This Row],[Stvarni trošak]]","v":{"v":0,"d":"$0"}}]
[null,"Školarina","Deca",{"v":100,"d":"100 Din."},{"v":100,"d":"100 Din."},{"$f":"BudgetDetails[[#This Row],[Predviđeni trošak]]-BudgetDetails[[#This Row],[Stvarni trošak]]","v":{"v":0,"d":"0 Din."}},{"$f":"BudgetDetails[[#This Row],[Stvarni trošak]]","v":{"v":100,"d":"$100"}}]
[null,"Koncerti","Zabava",{"v":50,"d":"50 Din."},{"v":40,"d":"40 Din."},{"$f":"BudgetDetails[[#This Row],[Predviđeni trošak]]-BudgetDetails[[#This Row],[Stvarni trošak]]","v":{"v":10,"d":"10 Din."}},{"$f":"BudgetDetails[[#This Row],[Stvarni trošak]]","v":{"v":40,"d":"$40"}}]
[null,"Pozorište","Zabava",{"v":200,"d":"200 Din."},{"v":150,"d":"150 Din."},{"$f":"BudgetDetails[[#This Row],[Predviđeni trošak]]-BudgetDetails[[#This Row],[Stvarni trošak]]","v":{"v":50,"d":"50 Din."}},{"$f":"BudgetDetails[[#This Row],[Stvarni trošak]]","v":{"v":150,"d":"$150"}}]
[null,"Bioskop","Zabava",{"v":50,"d":"50 Din."},{"v":28,"d":"28 Din."},{"$f":"BudgetDetails[[#This Row],[Predviđeni trošak]]-BudgetDetails[[#This Row],[Stvarni trošak]]","v":{"v":22,"d":"22 Din."}},{"$f":"BudgetDetails[[#This Row],[Stvarni trošak]]","v":{"v":28,"d":"$28"}}]
[null,"Muzika (CD-ovi, preuzimanja, itd.)","Zabava",{"v":50,"d":"50 Din."},{"v":30,"d":"30 Din."},{"$f":"BudgetDetails[[#This Row],[Predviđeni trošak]]-BudgetDetails[[#This Row],[Stvarni trošak]]","v":{"v":20,"d":"20 Din."}},{"$f":"BudgetDetails[[#This Row],[Stvarni trošak]]","v":{"v":30,"d":"$30"}}]
[null,"Sportski događaji","Zabava",{"v":0,"d":"0 Din."},{"v":40,"d":"40 Din."},{"$f":"BudgetDetails[[#This Row],[Predviđeni trošak]]-BudgetDetails[[#This Row],[Stvarni trošak]]","v":{"v":-40,"d":"-40 Din."}},{"$f":"BudgetDetails[[#This Row],[Stvarni trošak]]","v":{"v":40,"d":"$40"}}]
[null,"Video/DVD (Kupovina)","Zabava",{"v":20,"d":"20 Din."},{"v":50,"d":"50 Din."},{"$f":"BudgetDetails[[#This Row],[Predviđeni trošak]]-BudgetDetails[[#This Row],[Stvarni trošak]]","v":{"v":-30,"d":"-30 Din."}},{"$f":"BudgetDetails[[#This Row],[Stvarni trošak]]","v":{"v":50,"d":"$50"}}]
[null,"Video/DVD (Iznajmljivanje)","Zabava",{"v":30,"d":"30 Din."},{"v":20,"d":"20 Din."},{"$f":"BudgetDetails[[#This Row],[Predviđeni trošak]]-BudgetDetails[[#This Row],[Stvarni trošak]]","v":{"v":10,"d":"10 Din."}},{"$f":"BudgetDetails[[#This Row],[Stvarni trošak]]","v":{"v":20,"d":"$20"}}]
[null,"Restorani","Hrana",{"v":1000,"d":"1,000 Din."},{"v":1200,"d":"1,200 Din."},{"$f":"BudgetDetails[[#This Row],[Predviđeni trošak]]-BudgetDetails[[#This Row],[Stvarni trošak]]","v":{"v":-200,"d":"-200 Din."}},{"$f":"BudgetDetails[[#This Row],[Stvarni trošak]]","v":{"v":1200,"d":"$1,200"}}]
[null,"Namirnice","Hrana",{"v":100,"d":"100 Din."},{"v":120,"d":"120 Din."},{"$f":"BudgetDetails[[#This Row],[Predviđeni trošak]]-BudgetDetails[[#This Row],[Stvarni trošak]]","v":{"v":-20,"d":"-20 Din."}},{"$f":"BudgetDetails[[#This Row],[Stvarni trošak]]","v":{"v":120,"d":"$120"}}]
[null,"Dobrotvorni prilog 1","Pokloni i dobrovoljni prilozi",{"v":75,"d":"75 Din."},{"v":100,"d":"100 Din."},{"$f":"BudgetDetails[[#This Row],[Predviđeni trošak]]-BudgetDetails[[#This Row],[Stvarni trošak]]","v":{"v":-25,"d":"-25 Din."}},{"$f":"BudgetDetails[[#This Row],[Stvarni trošak]]","v":{"v":100,"d":"$100"}}]
[null,"Dobrotvorni prilog 2","Pokloni i dobrovoljni prilozi",{"v":25,"d":"25 Din."},{"v":25,"d":"25 Din."},{"$f":"BudgetDetails[[#This Row],[Predviđeni trošak]]-BudgetDetails[[#This Row],[Stvarni trošak]]","v":{"v":0,"d":"0 Din."}},{"$f":"BudgetDetails[[#This Row],[Stvarni trošak]]","v":{"v":25,"d":"$25"}}]
[null,"Poklon 1","Pokloni i dobrovoljni prilozi",null,null,{"$f":"BudgetDetails[[#This Row],[Predviđeni trošak]]-BudgetDetails[[#This Row],[Stvarni trošak]]","v":{"v":0,"d":"0 Din."}},{"$f":"BudgetDetails[[#This Row],[Stvarni trošak]]","v":{"v":0,"d":"$0"}}]
[null,"Poklon 2","Pokloni i dobrovoljni prilozi",null,null,{"$f":"BudgetDetails[[#This Row],[Predviđeni trošak]]-BudgetDetails[[#This Row],[Stvarni trošak]]","v":{"v":0,"d":"0 Din."}},{"$f":"BudgetDetails[[#This Row],[Stvarni trošak]]","v":{"v":0,"d":"$0"}}]
[null,"Kablovska/satelitska televizija","Domaćinstvo",{"v":100,"d":"100 Din."},{"v":100,"d":"100 Din."},{"$f":"BudgetDetails[[#This Row],[Predviđeni trošak]]-BudgetDetails[[#This Row],[Stvarni trošak]]","v":{"v":0,"d":"0 Din."}},{"$f":"BudgetDetails[[#This Row],[Stvarni trošak]]","v":{"v":100,"d":"$100"}}]
[null,"Struja","Domaćinstvo",{"v":45,"d":"45 Din."},{"v":50,"d":"50 Din."},{"$f":"BudgetDetails[[#This Row],[Predviđeni trošak]]-BudgetDetails[[#This Row],[Stvarni trošak]]","v":{"v":-5,"d":"-5 Din."}},{"$f":"BudgetDetails[[#This Row],[Stvarni trošak]]","v":{"v":50,"d":"$50"}}]
[null,"Gas","Domaćinstvo",{"v":300,"d":"300 Din."},{"v":400,"d":"400 Din."},{"$f":"BudgetDetails[[#This Row],[Predviđeni trošak]]-BudgetDetails[[#This Row],[Stvarni trošak]]","v":{"v":-100,"d":"-100 Din."}},{"$f":"BudgetDetails[[#This Row],[Stvarni trošak]]","v":{"v":400,"d":"$400"}}]
[null,"Usluga čišćenja kuće","Domaćinstvo",{"v":200,"d":"200 Din."},null,{"$f":"BudgetDetails[[#This Row],[Predviđeni trošak]]-BudgetDetails[[#This Row],[Stvarni trošak]]","v":{"v":200,"d":"200 Din."}},{"$f":"BudgetDetails[[#This Row],[Stvarni trošak]]","v":{"v":0,"d":"$0"}}]
[null,"Održavanje","Domaćinstvo",{"v":200,"d":"200 Din."},{"v":150,"d":"150 Din."},{"$f":"BudgetDetails[[#This Row],[Predviđeni trošak]]-BudgetDetails[[#This Row],[Stvarni trošak]]","v":{"v":50,"d":"50 Din."}},{"$f":"BudgetDetails[[#This Row],[Stvarni trošak]]","v":{"v":150,"d":"$150"}}]
[null,"Hipoteka ili zakup","Domaćinstvo",{"v":1700,"d":"1,700 Din."},{"v":1700,"d":"1,700 Din."},{"$f":"BudgetDetails[[#This Row],[Predviđeni trošak]]-BudgetDetails[[#This Row],[Stvarni trošak]]","v":{"v":0,"d":"0 Din."}},{"$f":"BudgetDetails[[#This Row],[Stvarni trošak]]","v":{"v":1700,"d":"$1,700"}}]
[null,"Prirodni gas/nafta","Domaćinstvo",null,null,{"$f":"BudgetDetails[[#This Row],[Predviđeni trošak]]-BudgetDetails[[#This Row],[Stvarni trošak]]","v":{"v":0,"d":"0 Din."}},{"$f":"BudgetDetails[[#This Row],[Stvarni trošak]]","v":{"v":0,"d":"$0"}}]
[null,"Mrežne/Internet usluge","Domaćinstvo",{"v":100,"d":"100 Din."},{"v":100,"d":"100 Din."},{"$f":"BudgetDetails[[#This Row],[Predviđeni trošak]]-BudgetDetails[[#This Row],[Stvarni trošak]]","v":{"v":0,"d":"0 Din."}},{"$f":"BudgetDetails[[#This Row],[Stvarni trošak]]","v":{"v":100,"d":"$100"}}]
[null,"Telefon (Mobilni)","Domaćinstvo",{"v":60,"d":"60 Din."},{"v":60,"d":"60 Din."},{"$f":"BudgetDetails[[#This Row],[Predviđeni trošak]]-BudgetDetails[[#This Row],[Stvarni trošak]]","v":{"v":0,"d":"0 Din."}},{"$f":"BudgetDetails[[#This Row],[Stvarni trošak]]","v":{"v":60,"d":"$60"}}]
[null,"Telefon (Fiksni)","Domaćinstvo",{"v":35,"d":"35 Din."},{"v":39,"d":"39 Din."},{"$f":"BudgetDetails[[#This Row],[Predviđeni trošak]]-BudgetDetails[[#This Row],[Stvarni trošak]]","v":{"v":-4,"d":"-4 Din."}},{"$f":"BudgetDetails[[#This Row],[Stvarni trošak]]","v":{"v":39,"d":"$39"}}]
[null,"Zalihe","Domaćinstvo",{"v":40,"d":"40 Din."},{"v":55,"d":"55 Din."},{"$f":"BudgetDetails[[#This Row],[Predviđeni trošak]]-BudgetDetails[[#This Row],[Stvarni trošak]]","v":{"v":-15,"d":"-15 Din."}},{"$f":"BudgetDetails[[#This Row],[Stvarni trošak]]","v":{"v":55,"d":"$55"}}]
[null,"Odnošenje smeća i reciklaža","Domaćinstvo",{"v":25,"d":"25 Din."},{"v":22,"d":"22 Din."},{"$f":"BudgetDetails[[#This Row],[Predviđeni trošak]]-BudgetDetails[[#This Row],[Stvarni trošak]]","v":{"v":3,"d":"3 Din."}},{"$f":"BudgetDetails[[#This Row],[Stvarni trošak]]","v":{"v":22,"d":"$22"}}]
[null,"Voda i kanalizacija","Domaćinstvo",{"v":25,"d":"25 Din."},{"v":26,"d":"26 Din."},{"$f":"BudgetDetails[[#This Row],[Predviđeni trošak]]-BudgetDetails[[#This Row],[Stvarni trošak]]","v":{"v":-1,"d":"-1 Din."}},{"$f":"BudgetDetails[[#This Row],[Stvarni trošak]]","v":{"v":26,"d":"$26"}}]
[null,"Zdravlje","Osiguranje",{"v":400,"d":"400 Din."},{"v":400,"d":"400 Din."},{"$f":"BudgetDetails[[#This Row],[Predviđeni trošak]]-BudgetDetails[[#This Row],[Stvarni trošak]]","v":{"v":0,"d":"0 Din."}},{"$f":"BudgetDetails[[#This Row],[Stvarni trošak]]","v":{"v":400,"d":"$400"}}]
[null,"Kuća","Osiguranje",{"v":400,"d":"400 Din."},{"v":400,"d":"400 Din."},{"$f":"BudgetDetails[[#This Row],[Predviđeni trošak]]-BudgetDetails[[#This Row],[Stvarni trošak]]","v":{"v":0,"d":"0 Din."}},{"$f":"BudgetDetails[[#This Row],[Stvarni trošak]]","v":{"v":400,"d":"$400"}}]
[null,"Život","Osiguranje",{"v":100,"d":"100 Din."},{"v":100,"d":"100 Din."},{"$f":"BudgetDetails[[#This Row],[Predviđeni trošak]]-BudgetDetails[[#This Row],[Stvarni trošak]]","v":{"v":0,"d":"0 Din."}},{"$f":"BudgetDetails[[#This Row],[Stvarni trošak]]","v":{"v":100,"d":"$100"}}]
[null,"Kreditna kartica 1","Krediti",{"v":200,"d":"200 Din."},{"v":200,"d":"200 Din."},{"$f":"BudgetDetails[[#This Row],[Predviđeni trošak]]-BudgetDetails[[#This Row],[Stvarni trošak]]","v":{"v":0,"d":"0 Din."}},{"$f":"BudgetDetails[[#This Row],[Stvarni trošak]]","v":{"v":200,"d":"$200"}}]
[null,"Kreditna kartica 2","Krediti",null,null,{"$f":"BudgetDetails[[#This Row],[Predviđeni trošak]]-BudgetDetails[[#This Row],[Stvarni trošak]]","v":{"v":0,"d":"0 Din."}},{"$f":"BudgetDetails[[#This Row],[Stvarni trošak]]","v":{"v":0,"d":"$0"}}]
[null,"Kreditna kartica 3","Krediti",null,null,{"$f":"BudgetDetails[[#This Row],[Predviđeni trošak]]-BudgetDetails[[#This Row],[Stvarni trošak]]","v":{"v":0,"d":"0 Din."}},{"$f":"BudgetDetails[[#This Row],[Stvarni trošak]]","v":{"v":0,"d":"$0"}}]
[null,"Lično","Krediti",null,null,{"$f":"BudgetDetails[[#This Row],[Predviđeni trošak]]-BudgetDetails[[#This Row],[Stvarni trošak]]","v":{"v":0,"d":"0 Din."}},{"$f":"BudgetDetails[[#This Row],[Stvarni trošak]]","v":{"v":0,"d":"$0"}}]
[null,"Učenik","Krediti",null,null,{"$f":"BudgetDetails[[#This Row],[Predviđeni trošak]]-BudgetDetails[[#This Row],[Stvarni trošak]]","v":{"v":0,"d":"0 Din."}},{"$f":"BudgetDetails[[#This Row],[Stvarni trošak]]","v":{"v":0,"d":"$0"}}]
[null,"Odeća","Lična nega",{"v":150,"d":"150 Din."},{"v":140,"d":"140 Din."},{"$f":"BudgetDetails[[#This Row],[Predviđeni trošak]]-BudgetDetails[[#This Row],[Stvarni trošak]]","v":{"v":10,"d":"10 Din."}},{"$f":"BudgetDetails[[#This Row],[Stvarni trošak]]","v":{"v":140,"d":"$140"}}]
[null,"Hemijsko čišćenje","Lična nega",null,null,{"$f":"BudgetDetails[[#This Row],[Predviđeni trošak]]-BudgetDetails[[#This Row],[Stvarni trošak]]","v":{"v":0,"d":"0 Din."}},{"$f":"BudgetDetails[[#This Row],[Stvarni trošak]]","v":{"v":0,"d":"$0"}}]
[null,"Kosa/nokti","Lična nega",null,null,{"$f":"BudgetDetails[[#This Row],[Predviđeni trošak]]-BudgetDetails[[#This Row],[Stvarni trošak]]","v":{"v":0,"d":"0 Din."}},{"$f":"BudgetDetails[[#This Row],[Stvarni trošak]]","v":{"v":0,"d":"$0"}}]
[null,"Spa centar","Lična nega",null,null,{"$f":"BudgetDetails[[#This Row],[Predviđeni trošak]]-BudgetDetails[[#This Row],[Stvarni trošak]]","v":{"v":0,"d":"0 Din."}},{"$f":"BudgetDetails[[#This Row],[Stvarni trošak]]","v":{"v":0,"d":"$0"}}]
[null,"Lečenje","Lična nega",null,null,{"$f":"BudgetDetails[[#This Row],[Predviđeni trošak]]-BudgetDetails[[#This Row],[Stvarni trošak]]","v":{"v":0,"d":"0 Din."}},{"$f":"BudgetDetails[[#This Row],[Stvarni trošak]]","v":{"v":0,"d":"$0"}}]
[null,"Hrana","Ljubimci",{"v":150,"d":"150 Din."},{"v":75,"d":"75 Din."},{"$f":"BudgetDetails[[#This Row],[Predviđeni trošak]]-BudgetDetails[[#This Row],[Stvarni trošak]]","v":{"v":75,"d":"75 Din."}},{"$f":"BudgetDetails[[#This Row],[Stvarni trošak]]","v":{"v":75,"d":"$75"}}]
[null,"Šišanje","Ljubimci",{"v":20,"d":"20 Din."},{"v":25,"d":"25 Din."},{"$f":"BudgetDetails[[#This Row],[Predviđeni trošak]]-BudgetDetails[[#This Row],[Stvarni trošak]]","v":{"v":-5,"d":"-5 Din."}},{"$f":"BudgetDetails[[#This Row],[Stvarni trošak]]","v":{"v":25,"d":"$25"}}]
[null,"Lečenje","Ljubimci",null,null,{"$f":"BudgetDetails[[#This Row],[Predviđeni trošak]]-BudgetDetails[[#This Row],[Stvarni trošak]]","v":{"v":0,"d":"0 Din."}},{"$f":"BudgetDetails[[#This Row],[Stvarni trošak]]","v":{"v":0,"d":"$0"}}]
[null,"Igračke","Ljubimci",null,null,{"$f":"BudgetDetails[[#This Row],[Predviđeni trošak]]-BudgetDetails[[#This Row],[Stvarni trošak]]","v":{"v":0,"d":"0 Din."}},{"$f":"BudgetDetails[[#This Row],[Stvarni trošak]]","v":{"v":0,"d":"$0"}}]
[null,"Račun za investicije","Uštede ili ulaganja",{"v":200,"d":"200 Din."},{"v":200,"d":"200 Din."},{"$f":"BudgetDetails[[#This Row],[Predviđeni trošak]]-BudgetDetails[[#This Row],[Stvarni trošak]]","v":{"v":0,"d":"0 Din."}},{"$f":"BudgetDetails[[#This Row],[Stvarni trošak]]","v":{"v":200,"d":"$200"}}]
[null,"Penzioni račun","Uštede ili ulaganja",null,null,{"$f":"BudgetDetails[[#This Row],[Predviđeni trošak]]-BudgetDetails[[#This Row],[Stvarni trošak]]","v":{"v":0,"d":"0 Din."}},{"$f":"BudgetDetails[[#This Row],[Stvarni trošak]]","v":{"v":0,"d":"$0"}}]
[null,"Državni","Porezi",{"v":300,"d":"300 Din."},{"v":300,"d":"300 Din."},{"$f":"BudgetDetails[[#This Row],[Predviđeni trošak]]-BudgetDetails[[#This Row],[Stvarni trošak]]","v":{"v":0,"d":"0 Din."}},{"$f":"BudgetDetails[[#This Row],[Stvarni trošak]]","v":{"v":300,"d":"$300"}}]
[null,"Lokalni","Porezi",null,null,{"$f":"BudgetDetails[[#This Row],[Predviđeni trošak]]-BudgetDetails[[#This Row],[Stvarni trošak]]","v":{"v":0,"d":"0 Din."}},{"$f":"BudgetDetails[[#This Row],[Stvarni trošak]]","v":{"v":0,"d":"$0"}}]
[null,"Pokrajina","Porezi",null,null,{"$f":"BudgetDetails[[#This Row],[Predviđeni trošak]]-BudgetDetails[[#This Row],[Stvarni trošak]]","v":{"v":0,"d":"0 Din."}},{"$f":"BudgetDetails[[#This Row],[Stvarni trošak]]","v":{"v":0,"d":"$0"}}]
[null,"Karta za autobus/novac za taksi","Prevoz",{"v":100,"d":"100 Din."},{"v":150,"d":"150 Din."},{"$f":"BudgetDetails[[#This Row],[Predviđeni trošak]]-BudgetDetails[[#This Row],[Stvarni trošak]]","v":{"v":-50,"d":"-50 Din."}},{"$f":"BudgetDetails[[#This Row],[Stvarni trošak]]","v":{"v":150,"d":"$150"}}]
[null,"Gorivo","Prevoz",{"v":450,"d":"450 Din."},{"v":400,"d":"400 Din."},{"$f":"BudgetDetails[[#This Row],[Predviđeni trošak]]-BudgetDetails[[#This Row],[Stvarni trošak]]","v":{"v":50,"d":"50 Din."}},{"$f":"BudgetDetails[[#This Row],[Stvarni trošak]]","v":{"v":400,"d":"$400"}}]
[null,"Osiguranje","Prevoz",{"v":300,"d":"300 Din."},{"v":300,"d":"300 Din."},{"$f":"BudgetDetails[[#This Row],[Predviđeni trošak]]-BudgetDetails[[#This Row],[Stvarni trošak]]","v":{"v":0,"d":"0 Din."}},{"$f":"BudgetDetails[[#This Row],[Stvarni trošak]]","v":{"v":300,"d":"$300"}}]
[null,"Vađenje dozvola ","Prevoz",{"v":25,"d":"25 Din."},{"v":25,"d":"25 Din."},{"$f":"BudgetDetails[[#This Row],[Predviđeni trošak]]-BudgetDetails[[#This Row],[Stvarni trošak]]","v":{"v":0,"d":"0 Din."}},{"$f":"BudgetDetails[[#This Row],[Stvarni trošak]]","v":{"v":25,"d":"$25"}}]
[null,"Održavanje","Prevoz",{"v":100,"d":"100 Din."},{"v":50,"d":"50 Din."},{"$f":"BudgetDetails[[#This Row],[Predviđeni trošak]]-BudgetDetails[[#This Row],[Stvarni trošak]]","v":{"v":50,"d":"50 Din."}},{"$f":"BudgetDetails[[#This Row],[Stvarni trošak]]","v":{"v":50,"d":"$50"}}]
[null,"Naknada za parkiranje","Prevoz",null,null,{"$f":"BudgetDetails[[#This Row],[Predviđeni trošak]]-BudgetDetails[[#This Row],[Stvarni trošak]]","v":{"v":0,"d":"0 Din."}},{"$f":"BudgetDetails[[#This Row],[Stvarni trošak]]","v":{"v":0,"d":"$0"}}]
[null,"Otplata vozila","Prevoz",{"v":450,"d":"450 Din."},{"v":450,"d":"450 Din."},{"$f":"BudgetDetails[[#This Row],[Predviđeni trošak]]-BudgetDetails[[#This Row],[Stvarni trošak]]","v":{"v":0,"d":"0 Din."}},{"$f":"BudgetDetails[[#This Row],[Stvarni trošak]]","v":{"v":450,"d":"$450"}}]
[null,"Ukupno",null,{"$f":"SUBTOTAL(109,BudgetDetails[Predviđeni trošak])","v":{"v":7915,"d":"7,915 Din."}},{"$f":"SUBTOTAL(109,BudgetDetails[Stvarni trošak])","v":{"v":7860,"d":"7,860 Din."}},{"$f":"SUBTOTAL(109,BudgetDetails[Razlika])","v":{"v":55,"d":"55 Din."}}]

{"sheet":"Dodatni podaci","index":2,"n_rows":15,"n_cols":5,"rows_kept":15}
[null,"Izvedena tabela za grafikon pregleda budžeta",null,null,"Lista za pronalaženje kategorije detalja budžeta"]
[null,"Kategorija","Troškovi",null,"Pronalaženje kategorije budžeta"]
[null,"Deca",140,null,"Deca"]
[null,"Zabava",358,null,"Zabava"]
[null,"Hrana",1320,null,"Hrana"]
[null,"Pokloni i dobrovoljni prilozi",125,null,"Pokloni i dobrovoljni prilozi"]
[null,"Domaćinstvo",2702,null,"Domaćinstvo"]
[null,"Osiguranje",900,null,"Osiguranje"]
[null,"Krediti",200,null,"Krediti"]
[null,"Lična nega",140,null,"Lična nega"]
[null,"Ljubimci",100,null,"Ljubimci"]
[null,"Uštede ili ulaganja",200,null,"Uštede ili ulaganja"]
[null,"Porezi",300,null,"Porezi"]
[null,"Prevoz",1375,null,"Prevoz"]
[null,"Konačni zbir",7860]